fUSD/lending_fUSD_20240626
["ID","MTS","AMOUNT","RATE_DAILY","PERIOD"]
[330454354,1719421222266,-500.0,0.00044657,120]
[330454355,1719421222307,-604.37,0.00044657,120]
[330454356,1719421222346,-1084.11,0.00044657,120]
[330454357,1719421222386,-1537.04,0.00044657,120]
[330454358,1719421222426,-500.0,0.00044657,120]
[330454359,1719421222465,-500.0,0.00044657,120]
[330454360,1719421222505,-500.0,0.00044657,120]
[330454361,1719421222546,-1645.42,0.00044657,120]
[330454362,1719421222587,-1050.95,0.00044657,120]
[330454363,1719421222626,-500.0,0.00044657,120]
[330454364,1719421222671,-2611.47,0.00044657,120]
[330454365,1719421222712,-1662.19,0.00044657,120]
[330454366,1719421222751,-500.0,0.00044657,120]
[330454367,1719421222801,-500.0,0.00044657,120]
[330454368,1719421222841,-500.0,0.00044657,120]
[330454369,1719421222880,-500.0,0.00044657,120]
[330454370,1719421222920,-500.0,0.00044657,120]
[330454371,1719421222961,-12838.55,0.00044657,120]
[330454372,1719421223001,-500.0,0.00044657,120]
[330454373,1719421223042,-521.94,0.00044657,120]
[330454374,1719421223086,-1593.59,0.00044657,120]
[330454375,1719421223132,-2357.93,0.00044657,120]
[330454376,1719421223175,-1959.42,0.00044657,120]
[330454377,1719421223219,-500.0,0.00044657,120]
[330454378,1719421223263,-500.0,0.00044657,120]
[330454379,1719421223310,-2689.1,0.00044657,120]
[330454380,1719421223353,-500.0,0.00044657,120]
[330454381,1719421223395,-1750.22,0.00044657,120]
[330454382,1719421223438,-518.58,0.00044657,120]
[330454383,1719421223481,-661.3,0.00044657,120]
[330454384,1719421223527,-1087.19,0.00044657,120]
[330454385,1719421223853,-500.0,0.00044657,120]
[330454386,1719421223896,-913.08,0.00044657,120]
[330454387,1719421223938,-25233.34,0.00044657,120]
[330454388,1719421223979,-500.0,0.00044657,120]
[330454389,1719421224023,-559.05,0.00044657,120]
[330454390,1719421224069,-551.22,0.00044657,120]
[330454391,1719421224117,-500.0,0.00044657,120]
[330454392,1719421224161,-1129.93,0.00044657,120]
[330454393,1719421224204,-2041.64,0.00044657,120]
[330454394,1719421224245,-500.0,0.00044657,120]
[330454395,1719421224288,-1890.72,0.00044657,120]
[330454396,1719421224332,-542.27,0.00044657,120]
[330454397,1719421224376,-500.0,0.00044657,120]
[330454398,1719421224419,-6405.25,0.00044657,120]
[330454399,1719421224462,-500.0,0.00044657,120]
[330454400,1719421224505,-1211.63,0.00044657,120]
[330454401,1719421224551,-500.0,0.00044657,120]
[330454402,1719421224597,-1157.43,0.00044657,120]
[330454403,1719421224644,-500.0,0.00044657,120]
[330454404,1719421224688,-5151.41,0.00044657,120]
[330454405,1719421224733,-500.0,0.00044657,120]
[330454406,1719421224776,-500.0,0.00044657,120]
[330454407,1719421224819,-500.0,0.00044657,120]
[330454408,1719421224862,-500.0,0.00044657,120]
[330454409,1719421224905,-2326.29,0.00044657,120]
[330454410,1719421224950,-1210.99,0.00044657,120]
[330454411,1719421224995,-500.0,0.00044657,120]
[330454412,1719421225038,-500.0,0.00044657,120]
[330454413,1719421225082,-2468.42,0.00044657,120]
[330454414,1719421225126,-613.83,0.00044657,120]
[330454415,1719421225169,-1510.61,0.00044657,120]
[330454416,1719421225216,-500.0,0.00044657,120]
[330454417,1719421225261,-500.0,0.00044657,120]
[330454418,1719421225308,-855.59,0.00044657,120]
[330454419,1719421225355,-878.66,0.00044657,120]
[330454420,1719421225399,-500.0,0.00044657,120]
[330454421,1719421225444,-1514.18,0.00044657,120]
[330454422,1719421225490,-500.0,0.00044657,120]
[330454423,1719421225536,-878.65,0.00044657,120]
[330454424,1719421225580,-500.0,0.00044657,120]
[330454425,1719421225626,-568.5,0.00044657,120]
[330454426,1719421225674,-1186.88,0.00044657,120]
[330454427,1719421225719,-500.0,0.00044657,120]
[330454428,1719421225766,-4396.48,0.00044657,120]
[330454429,1719421225812,-1861.96,0.00044657,120]
[330454430,1719421225855,-500.0,0.00044657,120]
[330454431,1719421225900,-1151.18,0.00044657,120]
[330454432,1719421225945,-2813.81,0.00044657,120]
[330454433,1719421225991,-886.69,0.00044657,120]
[330454434,1719421226034,-1975.79,0.00044657,120]
[330454435,1719421226080,-1235.1,0.00044657,120]
[330454436,1719421226126,-1847.37,0.00044657,120]
[330454437,1719421226172,-4678.92,0.00044657,120]
[330454438,1719421226215,-1081.79515306,0.00044657,120]
[330454439,1719421226258,-1804.38,0.00044657,120]
[330454440,1719421226301,-646.6,0.00044657,120]
[330454441,1719421226342,-500.0,0.00044657,120]
[330454442,1719421226386,-500.0,0.00044657,120]
[330454443,1719421226430,-500.0,0.00044657,120]
[330454444,1719421226472,-810.06,0.00044657,120]
[330454445,1719421226517,-8076.29,0.00044657,120]
[330454446,1719421226561,-500.0,0.00044657,120]
[330454447,1719421226607,-2216.4,0.00044657,120]
[330454448,1719421226649,-1357.91,0.00044657,120]
[330454449,1719421226691,-500.0,0.00044657,120]
[330454450,1719421226736,-3446.64,0.00044657,120]
[330454451,1719421226778,-512.39152044,0.00044657,120]
[330454452,1719421226819,-2762.39,0.00044657,120]
[330454453,1719421226862,-500.0,0.00044657,120]
[330454454,1719421226905,-500.0,0.00044657,120]
[330454455,1719421226947,-1946.47,0.00044657,120]
[330454456,1719421226987,-500.0,0.00044657,120]
[330454457,1719421227027,-500.0,0.00044657,120]
[330454458,1719421227069,-1527.44,0.00044657,120]
[330454459,1719421227112,-500.0,0.00044657,120]
[330454460,1719421227153,-500.0,0.00044657,120]
[330454461,1719421227193,-1500.0,0.00044657,120]
[330454462,1719421227233,-1620.11,0.00044657,120]
[330454463,1719421227273,-500.0,0.00044657,120]
[330454464,1719421227317,-500.0,0.00044657,120]
[330454465,1719421227364,-500.0,0.00044657,120]
[330454466,1719421227413,-1061.6,0.00044657,120]
[330454467,1719421227459,-624.7,0.00044657,120]
[330454468,1719421227506,-936.82,0.00044657,120]
[330454469,1719421227551,-500.0,0.00044657,120]
[330454470,1719421227596,-1848.08,0.00044657,120]
[330454471,1719421227644,-2411.38,0.00044657,120]
[330454472,1719421227689,-500.0,0.00044657,120]
[330454473,1719421227737,-500.0,0.00044657,120]
[330454474,1719421227783,-500.0,0.00044657,120]
[330454475,1719421227827,-500.0,0.00044657,120]
[330454476,1719421227871,-500.0,0.00044657,120]
[330454477,1719421227911,-500.0,0.00044657,120]
[330454478,1719421227953,-2063.39,0.00044657,120]
[330454479,1719421227994,-500.0,0.00044657,120]
[330454480,1719421228035,-2500.58,0.00044657,120]
[330454481,1719421228079,-3206.8,0.00044657,120]
[330454482,1719421228122,-3093.54,0.00044657,120]
[330454483,1719421228163,-882.93,0.00044657,120]
[330454484,1719421228203,-500.0,0.00044657,120]
[330454485,1719421228243,-3836.22,0.00044657,120]
[330454486,1719421228283,-500.0,0.00044657,120]
[330454487,1719421228324,-500.0,0.00044657,120]
[330454488,1719421228598,-500.0,0.00044657,120]
[330454489,1719421228640,-500.0,0.00044657,120]
[330454490,1719421228683,-1282.7,0.00044657,120]
[330454491,1719421228727,-957.59,0.00044657,120]
[330454492,1719421228771,-3991.63,0.00044657,120]
[330454493,1719421228817,-1393.84,0.00044657,120]
[330454494,1719421228863,-500.0,0.00044657,120]
[330454495,1719421228904,-500.0,0.00044657,120]
[330454496,1719421228946,-659.41,0.00044657,120]
[330454497,1719421228987,-1588.57,0.00044657,120]
[330454498,1719421229031,-553.92,0.00044657,120]
[330454499,1719421229074,-628.61,0.00044657,120]
[330454500,1719421229116,-500.0,0.00044657,120]
[330454501,1719421229158,-2647.31,0.00044657,120]
[330454502,1719421229199,-1577.74,0.00044657,120]
[330454503,1719421229240,-500.0,0.00044657,120]
[330454504,1719421229282,-1631.48,0.00044657,120]
[330454505,1719421229322,-500.0,0.00044657,120]
[330454506,1719421229362,-500.0,0.00044657,120]
[330454507,1719421229401,-1380.52,0.00044657,120]
[330454508,1719421229441,-736.66,0.00044657,120]
[330454509,1719421229480,-500.0,0.00044657,120]
[330454510,1719421229519,-628.0,0.00044657,120]
[330454511,1719421229560,-13038.48,0.00044657,120]
[330454512,1719421229598,-213.59461388,0.00044657,120]
[330454513,1719421229637,-500.0,0.00044657,120]
[330454514,1719421229680,-500.0,0.00044657,120]
[330454515,1719421229719,-500.0,0.00044657,120]
[330454516,1719421229760,-1840.55,0.00044657,120]
[330454517,1719421229805,-3556.53,0.00044657,120]
[330454518,1719421229848,-1393.41,0.00044657,120]
[330454519,1719421229888,-500.0,0.00044657,120]
[330454520,1719421229929,-500.0,0.00044657,120]
[330454521,1719421229969,-656.83,0.00044657,120]
[330454522,1719421230009,-500.0,0.00044657,120]
[330454523,1719421230050,-652.61,0.00044657,120]
[330454524,1719421230090,-500.0,0.00044657,120]
[330454525,1719421230131,-500.0,0.00044657,120]
[330454526,1719421230170,-171.918462,0.00044657,120]
[330454527,1719421230209,-500.0,0.00044657,120]
[330454528,1719421230247,-1562.82,0.00044657,120]
[330454529,1719421230286,-723.91,0.00044657,120]
[330454530,1719421230325,-563.5,0.00044657,120]
[330454531,1719421230365,-977.19,0.00044657,120]
[330454532,1719421230404,-500.0,0.00044657,120]
[330454533,1719421230447,-500.0,0.00044657,120]
[330454534,1719421230488,-868.82,0.00044657,120]
[330454535,1719421230529,-5977.35,0.00044657,120]
[330454536,1719421230571,-656.52,0.00044657,120]
[330454537,1719421230613,-504.04,0.00044657,120]
[330454538,1719421230656,-18533.5,0.00044657,120]
[330454539,1719421230698,-1076.75,0.00044657,120]
[330454540,1719421230740,-606.46249136,0.00044657,120]
[330454541,1719421230782,-500.0,0.00044657,120]
[330454542,1719421230825,-1357.14,0.00044657,120]
[330454543,1719421230868,-500.0,0.00044657,120]
[330454544,1719421230910,-14889.68,0.00044657,120]
[330454545,1719421230952,-4099.7,0.00044657,120]
[330454546,1719421230994,-560.48,0.00044657,120]
[330454547,1719421231035,-1238.17,0.00044657,120]
[330454548,1719421231075,-1356.52,0.00044657,120]
[330454549,1719421231114,-500.0,0.00044657,120]
[330454550,1719421231158,-500.0,0.00044657,120]
[330454551,1719421231200,-4220.21,0.00044657,120]
[330454552,1719421231241,-1413.83,0.00044657,120]
[330454553,1719421231284,-500.0,0.00044657,90]
[330454554,1719421231325,-500.0,0.00044657,120]
[330454555,1719421231368,-318.00083184,0.00044657,120]
[330454556,1719421231411,-1870.01,0.00044657,120]
[330454557,1719421231452,-2873.59,0.00044657,120]
[330454558,1719421231494,-500.0,0.00044657,30]
[330454559,1719421231538,-728.12,0.00044657,120]
[330454560,1719421231582,-1850.62,0.00044657,120]
[330454561,1719421231627,-500.0,0.00044657,120]
[330454562,1719421231675,-1484.8,0.00044657,120]
[330454563,1719421231718,-2000.27,0.00044657,120]
[330454564,1719421231764,-4270.63,0.00044657,120]
[330454565,1719421231810,-1535.2,0.00044657,120]
[330454566,1719421231855,-500.0,0.00044657,120]
[330454567,1719421231895,-627.47,0.00044657,120]
[330454568,1719421231937,-500.0,0.00044657,120]
[330454569,1719421231980,-1059.38,0.00044657,120]
[330454570,1719421232020,-500.0,0.00044657,120]
[330454571,1719421232062,-500.0,0.00044657,120]
[330454572,1719421232104,-1528.43,0.00044657,120]
[330454573,1719421232145,-508.26,0.00044657,120]
[330454574,1719421232187,-500.0,0.00044657,120]
[330454575,1719421232231,-673.76,0.00044657,120]
[330454576,1719421232274,-2226.01,0.00044657,120]
[330454577,1719421232314,-500.0,0.00044657,120]
[330454578,1719421232356,-503.50219557,0.00044657,120]
[330454579,1719421232397,-500.0,0.00044657,120]
[330454580,1719421232438,-601.86,0.00044657,120]
[330454581,1719421232479,-500.0,0.00044657,120]
[330454582,1719421232520,-500.0,0.00044657,120]
[330454583,1719421232563,-552.6,0.00044657,120]
[330454584,1719421232605,-2000.0,0.00044657,120]
[330454585,1719421232648,-500.0,0.00044657,120]
[330454586,1719421232690,-2142.38,0.00044657,120]
[330454587,1719421232730,-500.0,0.00044657,120]
[330454588,1719421232772,-500.0,0.00044657,120]
[330454589,1719421232814,-500.0,0.00044657,120]
[330454590,1719421232855,-4665.92,0.00044657,120]
[330454591,1719421232898,-500.0,0.00044657,120]
[330454592,1719421233180,-500.0,0.00044657,120]
[330454593,1719421233229,-1565.23,0.00044657,120]
[330454594,1719421233278,-1229.92,0.00044657,120]
[330454595,1719421233327,-500.0,0.00044657,120]
[330454596,1719421233366,-500.0,0.00044657,120]
[330454597,1719421233408,-251.02,0.00044657,120]
[330454598,1719421233449,-500.0,0.00044657,120]
[330454599,1719421233489,-756.44,0.00044657,120]
[330454600,1719421233532,-500.0,0.00044657,120]
[330454601,1719421233574,-400.33002007,0.00044657,120]
[330454602,1719421233616,-536.62,0.00044657,120]
[330454603,1719421233659,-714.77,0.00044657,120]
[330454604,1719421233702,-500.0,0.00044657,120]
[330454605,1719421233745,-867.94,0.00044657,120]
[330454606,1719421233791,-3697.58,0.00044657,120]
[330454607,1719421233832,-1453.18,0.00044657,120]
[330454608,1719421233877,-3235.38,0.00044657,120]
[330454609,1719421233919,-2592.31,0.00044657,120]
[330454610,1719421233963,-500.0,0.00044657,120]
[330454611,1719421234008,-2048.92,0.00044657,120]
[330454612,1719421234054,-500.0,0.00044657,120]
[330454613,1719421234100,-708.69,0.00044657,120]
[330454614,1719421234147,-500.0,0.00044657,120]
[330454615,1719421234192,-703.2,0.00044657,120]
[330454616,1719421234236,-500.0,0.00044657,120]
[330454617,1719421234278,-936.66,0.00044657,120]
[330454618,1719421234321,-790.2,0.00044657,120]
[330454619,1719421234366,-413.48597182,0.00044657,120]
[330454620,1719421234411,-500.0,0.00044657,120]
[330454621,1719421234454,-1558.51,0.00044657,120]
[330454622,1719421234500,-693.94,0.00044657,120]
[330454623,1719421234546,-500.0,0.00044657,120]
[330454624,1719421234595,-500.0,0.00044657,120]
[330454625,1719421234641,-500.0,0.00044657,30]
[330454626,1719421234688,-500.0,0.00044657,120]
[330454627,1719421234734,-500.0,0.00044657,120]
[330454628,1719421234781,-500.0,0.00044657,120]
[330454629,1719421234827,-1380.14,0.00044657,120]
[330454630,1719421234874,-500.0,0.00044657,120]
[330454631,1719421234919,-814.09,0.00044657,120]
[330454632,1719421234962,-500.0,0.00044657,120]
[330454633,1719421235006,-1668.05,0.00044657,120]
[330454634,1719421235048,-818.43,0.00044657,120]
[330454635,1719421235092,-1598.55,0.00044657,120]
[330454636,1719421235135,-902.09,0.00044657,120]
[330454637,1719421235179,-500.0,0.00044657,120]
[330454638,1719421235221,-764.49,0.00044657,120]
[330454639,1719421235264,-527.51,0.00044657,120]
[330454640,1719421235305,-1000.0,0.00044686,30]
[330454641,1719421235346,-150.0,0.00044744,30]
[330454642,1719421235388,-903469.24162195,0.0004475,47]
[330454658,1719421771146,-166.95,0.0001195,2]
[330454659,1719421771167,-50.86429448,0.0001197,2]
[330454681,1719421832467,-161.95,0.00011163,2]
[330454682,1719421832477,-297.807,0.0001197,2]
[330454683,1719421832488,-90.69870552,0.0001197,2]
[330454684,1719421832499,-3210.35044122,0.0001197,2]
[330454685,1719421832586,-6104.88,0.0001197,2]
[330454686,1719421832598,-6041.1,0.0001197,2]
[330454687,1719421832610,-2426.998789,0.0001197,2]
[330454688,1719421832622,-1973.22629204,0.0001197,2]
[330454689,1719421832634,-551.63810066,0.0001197,2]
[330454690,1719421832643,-225.85789534,0.00013617,2]
[330454691,1719421832707,-138.15143574,0.00013617,2]
[330454692,1719421832716,-364.00933108,0.00013617,2]
[330454693,1719421832726,-341.83923318,0.000139,2]
[330454694,1719421832738,-2132.32698548,0.000139,2]
[330454695,1719421832749,-4858.92238134,0.000139,2]
[330454696,1719421832759,-1000.0,0.000139,2]
[330454697,1719421832768,-4054.072,0.000139,2]
[330454698,1719421832777,-200.0,0.00013986,2]
[330454699,1719421832787,-217777.29095888,0.00014,2]
[330454700,1719421832846,-827.27947812,0.00014,2]
[330454701,1719421832858,-3738.06263077,0.00014,2]
[330454708,1719421833221,-1231.37527842,0.00014,2]
[330454713,1719421837844,-30352.99999995,0.00014,2]
[330454714,1719421837856,-138665.82417984,0.00014,2]
[330454715,1719421837867,-468.3990402,0.00014076,2]
[330454716,1719421837877,-156.36422535,0.00014176,2]
[330454717,1719421837886,-439.37,0.00014234,2]
[330454718,1719421837896,-156.71,0.00014263,2]
[330454719,1719421837905,-320.0,0.00014266,2]
[330454720,1719421837914,-250.0,0.00014276,2]
[330454721,1719421837924,-250.0,0.00014323,2]
[330454722,1719421837933,-1407.13,0.00014323,2]
[330454723,1719421837947,-150.0,0.00014356,2]
[330454724,1719421837956,-3402.51,0.00014356,2]
[330454725,1719421837966,-305.43945511,0.00014532,2]
[330454726,1719421837976,-32821.0,0.00014554,2]
[330454728,1719421837987,-17757.66,0.00014632,2]
[330454729,1719421837996,-499.99,0.00014632,2]
[330454730,1719421838006,-150.99,0.00014632,2]
[330454731,1719421838015,-178.18494106,0.00014907,2]
[330454732,1719421838026,-201.39580507,0.00014907,2]
[330454733,1719421838038,-160.92692108,0.00014933,2]
[330454734,1719421838049,-680.0,0.00014934,2]
[330454735,1719421838059,-167.12,0.00014963,2]
[330454736,1719421838070,-468.3990402,0.00014968,2]
[330454737,1719421838080,-185.46399961,0.0001499,2]
[330454738,1719421838090,-323.28692927,0.00014999,5]
[330454739,1719421838099,-279.6748784,0.00015,14]
[330454740,1719421838109,-350270.1605849,0.00015,2]
[330454742,1719421838122,-3111.9919513,0.00015,2]
[330454743,1719421838134,-1616.90177177,0.00015,2]
[330454744,1719421838150,-318.20514663,0.00015,2]
[330454885,1719421839700,-546.34779267,0.00014907,2]
[330454887,1719421839710,-290.73117162,0.00015,2]
[330454914,1719421839991,-1720.39690758,0.00015,2]
[330454917,1719421840003,-360571.43256924,0.00015,2]
[330454919,1719421840016,-581.24972892,0.00015,2]
[330454921,1719421840031,-519.84512498,0.00015,2]
[330454924,1719421840044,-921.49207379,0.00015,2]
[330455051,1719421843461,-302.623321,0.00015,2]
[330455055,1719421843498,-305.5875,0.00015,2]
[330455058,1719421843510,-917.92782126,0.00015,2]
[330455063,1719421843545,-1220.0,0.00015,2]
[330455065,1719421843559,-10180.87,0.00015,2]
[330455067,1719421843570,-2412.0,0.00015,2]
[330455069,1719421843582,-10510.3,0.00015,2]
[330455071,1719421843593,-9085.11228002,0.00015,2]
[330455076,1719421843626,-7423.67017622,0.00015,2]
[330455078,1719421843637,-7160.00000002,0.00015,2]
[330455135,1719421845825,-371.88291753,0.00015,2]
[330455137,1719421845837,-1324.8,0.00015,2]
[330455139,1719421845848,-833.725,0.00015,2]
[330455141,1719421845860,-1602.26598924,0.00015,2]
[330455143,1719421845872,-1803.08585291,0.00015,2]
[330455146,1719421845884,-1154974.28533188,0.00015,2]
[330455153,1719421845964,-363.366,0.00015,2]
[330455155,1719421845975,-760.169388,0.00015,2]
[330455157,1719421845987,-650.09,0.00015,2]
[330455163,1719421846109,-505218.33183308,0.00015,2]
[330455165,1719421846122,-32402.7166464,0.00015,2]
[330455166,1719421846131,-156.71,0.00015006,2]
[330455167,1719421846140,-171.5666584,0.00015129,2]
[330455168,1719421846150,-161.58,0.00015244,2]
[330455169,1719421846160,-475.2316268,0.00015297,2]
[330455170,1719421846170,-1308.6314972,0.00015298,2]
[330455171,1719421846179,-156.36422535,0.00015407,2]
[330455172,1719421846189,-173.574,0.0001575,2]
[330455173,1719421846198,-4229.37,0.00015768,2]
[330455174,1719421846207,-787.94090939,0.00015858,2]
[330455175,1719421846216,-468.3990402,0.00015859,2]
[330455176,1719421846225,-1308.63149717,0.00015988,2]
[330455177,1719421846235,-172.89,0.00016041,2]
[330455179,1719421846244,-320.0,0.00016049,2]
[330455181,1719421846254,-305.43945511,0.00016204,2]
[330455184,1719421846263,-439.37,0.00016498,2]
[330455185,1719421846273,-156.36422535,0.00016637,2]
[330455187,1719421846282,-1308.63149717,0.00016678,2]
[330455190,1719421846292,-161.95,0.00016744,2]
[330455192,1719421846303,-468.3990402,0.00016751,2]
[330455194,1719421846312,-680.0,0.00016801,2]
[330455195,1719421846321,-1308.63149717,0.00017369,2]
[330455198,1719421846331,-468.3990402,0.00017642,2]
[330455200,1719421846341,-320.0,0.00017833,2]
[330455201,1719421846350,-156.36422535,0.00017868,2]
[330455204,1719421846360,-305.43945511,0.00017875,2]
[330455205,1719421846369,-1045.97037746,0.00017999,5]
[330455208,1719421846379,-357.25872294,0.00018,2]
[330455211,1719421846388,-357.25872294,0.00018,2]
[330455213,1719421846397,-357.25872294,0.00018,2]
[330455214,1719421846406,-357.25872294,0.00018,2]
[330455216,1719421846416,-357.25872294,0.00018,2]
[330455218,1719421846425,-357.25872294,0.00018,2]
[330455220,1719421846435,-357.25872294,0.00018,2]
[330455222,1719421846444,-357.25872294,0.00018,2]
[330455224,1719421846453,-357.25872294,0.00018,2]
[330455226,1719421846463,-357.25872294,0.00018,2]
[330455228,1719421846472,-357.25872294,0.00018,2]
[330455231,1719421846482,-357.25872294,0.00018,2]
[330455232,1719421846491,-357.25872294,0.00018,2]
[330455234,1719421846501,-357.25872294,0.00018,2]
[330455236,1719421846510,-357.25872294,0.00018,2]
[330455238,1719421846521,-357.25872294,0.00018,2]
[330455241,1719421846531,-357.25872294,0.00018,2]
[330455243,1719421846541,-357.25872294,0.00018,2]
[330455244,1719421846550,-357.25872294,0.00018,2]
[330455246,1719421846560,-357.25872294,0.00018,2]
[330455249,1719421846570,-357.25872294,0.00018,2]
[330455251,1719421846579,-357.25872294,0.00018,2]
[330455253,1719421846589,-357.25872294,0.00018,2]
[330455254,1719421846599,-357.25872294,0.00018,2]
[330455256,1719421846609,-357.25872294,0.00018,2]
[330455259,1719421846619,-357.25872294,0.00018,2]
[330455261,1719421846629,-357.25872294,0.00018,2]
[330455262,1719421846640,-357.25872294,0.00018,2]
[330455264,1719421846650,-174.98062858,0.00018,2]
[330455267,1719421846663,-182.27809436,0.00018,2]
[330455269,1719421846673,-357.25872294,0.00018,2]
[330455271,1719421846683,-357.25872294,0.00018,2]
[330455273,1719421846693,-357.25872294,0.00018,2]
[330455275,1719421846702,-152.3991905,0.00018,2]
[330455663,1719422097499,411.50569907,0.00021818,60]
[330455695,1719423032817,-3332.62267,0.00011099,2]
[330455696,1719423032828,-349.70936002,0.00011099,2]
[330455697,1719423032840,-3414.03072675,0.00011099,2]
[330455698,1719423032850,-6221.87942226,0.0001372,2]
[330455699,1719423032859,-300.0,0.00013858,2]
[330455700,1719423032869,-10537.00283536,0.00013869,2]
[330455701,1719423032878,-1000.0,0.000139,2]
[330455702,1719423032888,-16990.2,0.00013984,2]
[330455703,1719423032897,-258.61409544,0.00013999,2]
[330455704,1719423032907,-611.722924,0.00014436,2]
[330455705,1719423032916,-155.0,0.00014445,2]
[330455706,1719423032926,-3964.09852975,0.00015,2]
[330455707,1719423032936,-297.36585903,0.00015183,2]
[330455708,1719423032946,-420.0,0.00015184,2]
[330455709,1719423032955,-499.99,0.00015648,2]
[330455710,1719423032965,-451.2,0.00015648,2]
[330455711,1719423032974,-1285.71256166,0.00016637,2]
[330455712,1719423032984,-587.0,0.00016638,2]
[330455713,1719423032993,-717.18626309,0.00016971,2]
[330455714,1719423033003,-2857.98675879,0.00017116,2]
[330455715,1719423033012,-1000.0,0.0001745,2]
[330455716,1719423033021,-161.58,0.00017532,2]
[330455717,1719423033031,-345.97900744,0.00017533,2]
[330455718,1719423033040,-438.05939194,0.00017533,2]
[330455719,1719423033050,-787.94090939,0.00017573,2]
[330455720,1719423033060,-364.00933108,0.00017574,2]
[330455721,1719423033069,-250.0,0.00017575,2]
[330455722,1719423033079,-384.20872226,0.000177,2]
[330455723,1719423033089,-210.02763994,0.00017766,2]
[330455724,1719423033098,-518.04242089,0.00017766,2]
[330455725,1719423033108,-173.17,0.00017767,2]
[330455726,1719423033117,-156.216,0.00017912,2]
[330455727,1719423033126,-451.2,0.00017912,2]
[330455728,1719423033136,-250.0,0.00017973,2]
[330455729,1719423033145,-4378.58,0.00018001,2]
[330455730,1719423033156,-155.0167928,0.00018015,2]
[330455732,1719423033165,-208.27255192,0.00018015,2]
[330455734,1719423033174,-155.0,0.00018015,2]
[330455736,1719423033182,-253.90432169,0.00018016,2]
[330455737,1719423033192,-155.0,0.00018016,2]
[330455739,1719423033201,-155.0,0.00018016,2]
[330455741,1719423033211,-155.79468526,0.00018016,2]
[330455743,1719423033220,-753.70840975,0.00018017,2]
[330455744,1719423033230,-364.63418018,0.00018017,2]
[330455745,1719423033239,-1012.62731708,0.00018017,2]
[330455746,1719423033248,-1262.89716959,0.00018018,2]
[330455747,1719423033258,-412.61839352,0.00018018,2]
[330455748,1719423033268,-1757.44036792,0.00018018,2]
[330455749,1719423033277,-474.72494916,0.00018019,2]
[330455750,1719423033289,-823.0,0.0001823,2]
[330455751,1719423033300,-12745.04310944,0.000185,2]
[330455752,1719423033311,-550.0,0.000187,3]
[330455753,1719423033320,-1835.0,0.000187,3]
[330455754,1719423033329,-156.216,0.00018852,2]
[330455755,1719423033339,-715.71837698,0.00019091,2]
[330455756,1719423033351,-172.89,0.00019347,2]
[330455757,1719423033361,-5158.4109,0.00019366,2]
[330455758,1719423033370,-307.8224,0.00019366,2]
[330455759,1719423033380,-10000.0,0.0001942,2]
[330455760,1719423033391,-1000.0,0.00019632,2]
[330455761,1719423033400,-1546.02553589,0.0001979,2]
[330455762,1719423033410,-2500.0,0.000198,2]
[330455763,1719423033419,-156.216,0.00019891,2]
[330455764,1719423033431,-30635.9463,0.000199,2]
[330455765,1719423033440,-100000.0,0.000199,2]
[330455766,1719423033450,-1241.1679,0.00019969,2]
[330455767,1719423033459,-600.0,0.00019975,2]
[330455768,1719423033468,-11002.82952,0.0002,2]